bitfinex/quotes_BTCUSD_20220207
["timestamp","ask_amount","ask_price","bid_price","bid_amount"]
[1644210963799,0.001,42894.0,42888.0,0.005]
[1644210963999,0.001,42894.0,42893.0,0.005]
[1644210964263,0.001,42894.0,42893.0,0.0517]
[1644210964462,0.001,42894.0,42893.0,0.162556]
[1644210964659,0.001,42894.0,42893.0,0.0517]
[1644210967900,0.0001,42900.0,42893.0,0.0517]
[1644210968103,0.0001,42900.0,42899.0,0.21816667]
[1644210968300,0.25,42899.0,42893.0,0.0467]
[1644210968498,0.25,42899.0,42898.0,0.21254989]
[1644210968699,0.0001,42900.0,42898.0,0.21254989]
[1644210969701,0.0001,42900.0,42893.0,0.0467]
[1644210970302,0.0001,42900.0,42899.0,0.07412465]
[1644210970503,0.0001,42900.0,42899.0,0.12082465]
[1644210972848,0.0001,42900.0,42899.0,0.0467]
[1644210973354,0.326546,42900.0,42899.0,0.0467]
[1644210974149,0.60896982,42900.0,42899.0,0.0467]
[1644210974349,0.60896982,42900.0,42890.0,0.1128]
[1644210974551,0.26268855,42895.0,42887.0,0.05]
[1644210975050,0.23945303,42894.0,42887.0,0.05]
[1644210975498,0.32269197,42893.0,42887.0,0.05]
[1644210975900,0.32269197,42893.0,42890.0,0.08974022]
[1644210976098,0.021,42894.0,42890.0,0.08974022]
[1644210976300,0.021,42894.0,42891.0,0.110864]
[1644210976898,0.23072807,42895.0,42890.0,0.08974022]
[1644210977700,0.25172807,42895.0,42890.0,0.08974022]
[1644210978900,0.23052807,42895.0,42890.0,0.08974022]
[1644210979150,0.28052807,42895.0,42890.0,0.08974022]
[1644210979643,0.30452807,42895.0,42890.0,0.08974022]
[1644210980244,0.25452807,42895.0,42890.0,0.08974022]
[1644210980444,0.30452807,42895.0,42890.0,0.08974022]
[1644210980644,0.25452807,42895.0,42890.0,0.08974022]
[1644210980844,0.079,42895.0,42890.0,0.08974022]
[1644210981149,0.27637871,42897.0,42893.0,0.26616403]
[1644210981346,0.326446,42896.0,42893.0,0.26616403]
[1644210981846,0.02,42897.0,42893.0,0.26616403]
[1644210982648,0.02,42897.0,42893.0,0.31616403]
[1644210983094,0.0199,42897.0,42893.0,0.31616403]
[1644210983699,0.0549,42897.0,42894.0,0.0467]
[1644210984097,0.0549,42897.0,42895.0,0.110848]
[1644210984396,0.0549,42897.0,42895.0,0.207548]
[1644210984595,0.0549,42897.0,42896.0,0.110844]
[1644210984796,0.0549,42897.0,42896.0,0.39476792]
[1644210985095,0.00016558,42899.0,42896.0,0.3912353]
[1644210985295,0.00016558,42899.0,42897.0,0.11084]
[1644210985797,0.0001,42900.0,42897.0,0.11084]
[1644210985997,0.00026558,42900.0,42897.0,0.11084]
[1644210986644,0.00026558,42900.0,42898.0,0.07598172]
[1644210987043,0.0001,42900.0,42898.0,0.12598172]
[1644210987841,0.0331,42900.0,42898.0,0.12598172]
[1644210988443,0.0331,42900.0,42898.0,0.07598172]
[1644210988945,0.0001,42900.0,42898.0,0.07598172]
[1644210989742,0.0351,42900.0,42898.0,0.12598172]
[1644210990997,0.0001,42900.0,42898.0,0.12598172]
[1644210991800,0.0341,42900.0,42899.0,0.3935047]
[1644210991997,0.0341,42900.0,42899.0,0.110832]
[1644210992798,0.0341,42900.0,42899.0,0.160832]
[1644210992997,0.0001,42900.0,42899.0,0.160832]
[1644210993798,0.0351,42900.0,42899.0,0.160832]
[1644210994252,0.0351,42900.0,42899.0,0.44237912]
[1644210994451,0.0005499,42902.0,42900.0,0.660828]
[1644210994751,0.0005499,42902.0,42901.0,0.55632536]
[1644210995350,0.0005499,42902.0,42901.0,0.77627885]
[1644210995548,0.052,42903.0,42901.0,0.77627885]
[1644210995750,0.052,42903.0,42902.0,0.39020931]
[1644210995949,0.052,42903.0,42902.0,0.43690931]
[1644210996353,0.0015499,42904.0,42902.0,0.43690931]
[1644210996551,0.001,42904.0,42903.0,0.40109613]
[1644210996752,0.001,42904.0,42903.0,0.44779613]
[1644210997750,0.001,42904.0,42903.0,0.55679613]
[1644210998194,0.001,42904.0,42903.0,0.45679613]
[1644210998394,0.001,42904.0,42903.0,0.166516]
[1644210999591,0.001,42904.0,42903.0,0.157516]
[1644210999792,0.001,42904.0,42903.0,0.163516]
[1644211000992,0.001,42904.0,42903.0,0.157516]
[1644211001654,0.0005499,42906.0,42903.0,0.207516]
[1644211001849,0.0005499,42906.0,42904.0,0.110803]
[1644211002149,0.0005499,42906.0,42905.0,0.17975832]
[1644211002645,0.19009607,42914.0,42905.0,0.17975832]
[1644211002845,0.0005499,42908.0,42905.0,0.06895032]
[1644211003045,0.0005499,42908.0,42907.0,0.26255769]
[1644211003245,0.0005499,42908.0,42907.0,0.42335769]
[1644211003446,0.15981872,42906.0,42905.0,0.06895032]
[1644211005796,0.15981872,42906.0,42905.0,0.07195032]
[1644211006197,0.15481872,42906.0,42905.0,0.07195032]
[1644211007098,0.15481872,42906.0,42905.0,0.06895032]
[1644211007897,0.15481872,42906.0,42905.0,0.07195032]
[1644211009145,0.15481872,42906.0,42905.0,0.06895032]
[1644211009748,0.15481872,42906.0,42905.0,0.07195032]
[1644211009949,0.15481872,42906.0,42905.0,0.36638145]
[1644211010945,0.15481872,42906.0,42905.0,0.36338145]
[1644211011144,0.15481872,42906.0,42905.0,0.06895032]
[1644211011744,0.15481872,42906.0,42905.0,0.07295032]
[1644211013094,0.15481872,42906.0,42905.0,0.06895032]
[1644211013896,0.15481872,42906.0,42905.0,0.07295032]
[1644211015098,0.15481872,42906.0,42905.0,0.06895032]
[1644211015699,0.15281872,42906.0,42905.0,0.06895032]
[1644211015900,0.15281872,42906.0,42905.0,0.07295032]
[1644211016851,0.15281872,42906.0,42905.0,0.12295032]
[1644211017052,0.15281872,42906.0,42905.0,0.11895032]
[1644211017252,0.15281872,42906.0,42905.0,0.06895032]
[1644211017857,0.15281872,42906.0,42905.0,0.07395032]
[1644211018053,0.15281872,42906.0,42905.0,0.12395032]
[1644211018252,0.15281872,42906.0,42905.0,0.07395032]
[1644211019054,0.15281872,42906.0,42905.0,0.06895032]
[1644211019854,0.15281872,42906.0,42905.0,0.07295032]
[1644211020697,0.15281872,42906.0,42905.0,0.12295032]
[1644211021096,0.15281872,42906.0,42905.0,0.11895032]
[1644211021797,0.15281872,42906.0,42905.0,0.12295032]
[1644211022196,0.15281872,42906.0,42905.0,0.41612812]
[1644211022999,0.15281872,42906.0,42905.0,0.12295032]
[1644211023298,0.15281872,42906.0,42905.0,0.11895032]
[1644211023697,0.15281872,42906.0,42905.0,0.42778593]
[1644211023897,0.15281872,42906.0,42905.0,0.43178593]
[1644211024346,0.15281872,42906.0,42905.0,0.53178593]
[1644211025146,0.15281872,42906.0,42905.0,0.57448593]
[1644211025346,0.15281872,42906.0,42905.0,0.47448593]
[1644211025747,0.15281872,42906.0,42905.0,0.42448593]
[1644211025950,0.15281872,42906.0,42905.0,0.42948593]
[1644211026147,0.15281872,42906.0,42905.0,0.17065032]
[1644211026347,0.15281872,42906.0,42905.0,0.12065032]
[1644211027047,0.15281872,42906.0,42905.0,0.11565032]
[1644211027348,0.15281872,42906.0,42905.0,0.16565032]
[1644211027748,0.15281872,42906.0,42905.0,0.21565032]
[1644211028009,0.15281872,42906.0,42905.0,0.22065032]
[1644211029010,0.15281872,42906.0,42905.0,0.21565032]
[1644211029610,0.15281872,42906.0,42905.0,0.16565032]
[1644211029811,0.15281872,42906.0,42905.0,0.17165032]
[1644211031212,0.15281872,42906.0,42905.0,0.16565032]
[1644211031853,0.15281872,42906.0,42905.0,0.22165032]
[1644211033254,0.15281872,42906.0,42905.0,0.21565032]
[1644211033958,0.15281872,42906.0,42905.0,0.22165032]
[1644211035154,0.15281872,42906.0,42905.0,0.21565032]
[1644211035401,0.15281872,42906.0,42905.0,0.06895032]
[1644211037904,0.15281872,42906.0,42905.0,0.06995032]
[1644211038104,0.15271889,42906.0,42905.0,0.06995032]
[1644211039149,0.15271889,42906.0,42905.0,0.06895032]
[1644211039842,0.15271889,42906.0,42905.0,0.07095032]
[1644211040242,0.15271889,42906.0,42905.0,0.12095032]
[1644211040842,0.15271889,42906.0,42905.0,0.07095032]
[1644211041244,0.15271889,42906.0,42905.0,0.06895032]
[1644211041844,0.15271889,42906.0,42905.0,0.07095032]
[1644211043096,0.15271889,42906.0,42905.0,0.06895032]
[1644211043996,0.15271889,42906.0,42905.0,0.06995032]
[1644211045196,0.15271889,42906.0,42905.0,0.06895032]
[1644211045997,0.15271889,42906.0,42905.0,0.07095032]
[1644211047652,0.15271889,42906.0,42905.0,0.06895032]
[1644211048154,0.15271889,42906.0,42898.0,0.05]
[1644211048754,0.15300056,42906.0,42898.0,0.05]
[1644211048953,0.15271889,42906.0,42898.0,0.05]
[1644211049354,0.15271889,42906.0,42904.0,0.06880732]
[1644211049554,0.326442,42905.0,42904.0,0.06880732]
[1644211049953,0.326442,42905.0,42904.0,0.09180732]
[1644211051099,0.326442,42905.0,42898.0,0.05]
[1644211051301,0.15300056,42906.0,42899.0,0.05]
[1644211051500,0.15300056,42906.0,42898.0,0.05]
[1644211051701,0.15300056,42906.0,42899.0,0.05]
[1644211051901,0.15471889,42906.0,42899.0,0.055]
[1644211052100,0.00016617,42904.0,42899.0,0.105]
[1644211052501,0.00016617,42904.0,42900.0,0.07960541]
[1644211053102,0.15271889,42906.0,42900.0,0.07960541]
[1644211053305,0.00055197,42904.0,42900.0,0.07960541]
[1644211053907,0.00555197,42904.0,42900.0,0.13460541]
[1644211054350,0.005,42904.0,42900.0,0.13460541]
[1644211054551,0.00555197,42904.0,42900.0,0.13460541]
[1644211054850,0.27266719,42904.0,42900.0,0.13460541]
[1644211055550,0.27211522,42904.0,42900.0,0.13460541]
[1644211055751,0.22865151,42903.0,42900.0,0.12960541]
[1644211055950,0.22865151,42903.0,42900.0,0.13660541]
[1644211056150,0.00355197,42904.0,42900.0,0.18660541]
[1644211056752,0.003,42904.0,42900.0,0.18660541]
[1644211056951,0.00316559,42904.0,42900.0,0.18660541]
[1644211057151,0.00016559,42904.0,42900.0,0.12960541]
[1644211057753,0.00016559,42904.0,42899.0,0.05]
[1644211058003,0.003,42904.0,42900.0,0.047]
[1644211058203,0.00355197,42904.0,42900.0,0.047]
[1644211058805,0.00355197,42904.0,42902.0,0.08524138]
[1644211059004,0.003,42904.0,42902.0,0.08524138]
[1644211059210,0.15271889,42906.0,42902.0,0.13524138]
[1644211059407,0.00055197,42905.0,42902.0,0.13524138]
[1644211060005,0.00455197,42905.0,42902.0,0.16024138]
[1644211060205,0.004,42905.0,42902.0,0.16024138]
[1644211061307,0.15327086,42906.0,42902.0,0.13524138]
[1644211061508,0.15271889,42906.0,42902.0,0.13524138]
[1644211061756,0.15319218,42906.0,42902.0,0.13524138]
[1644211061951,0.15719218,42906.0,42902.0,0.16024138]
[1644211062152,0.15719218,42906.0,42902.0,0.39145925]
[1644211062655,0.15664021,42906.0,42902.0,0.39145925]
[1644211063055,0.15719218,42906.0,42902.0,0.39145925]
[1644211063455,0.15719218,42906.0,42902.0,0.16024138]
[1644211063855,0.15664021,42906.0,42902.0,0.16024138]
[1644211064056,0.16119218,42906.0,42902.0,0.18424138]
[1644211065057,0.16064021,42906.0,42902.0,0.18424138]
[1644211065256,0.15319218,42906.0,42902.0,0.13524138]
[1644211066103,0.15319218,42906.0,42902.0,0.08524138]
[1644211066307,0.15264021,42906.0,42902.0,0.08524138]
[1644211066505,0.15319218,42906.0,42902.0,0.08524138]
[1644211067507,0.15264021,42906.0,42902.0,0.13524138]
[1644211067907,0.15564021,42906.0,42902.0,0.17224138]
[1644211069759,0.15264021,42906.0,42902.0,0.13524138]
[1644211069960,0.15464021,42906.0,42902.0,0.17524138]
[1644211070561,0.15464021,42906.0,42903.0,0.05]
[1644211070758,0.15464021,42906.0,42903.0,0.32580054]
[1644211071160,0.15464021,42906.0,42903.0,0.44231054]
[1644211071359,0.15264021,42906.0,42903.0,0.44231054]
[1644211071759,0.15264021,42906.0,42904.0,0.27244924]
[1644211071960,0.15764021,42906.0,42904.0,0.27244924]
[1644211072163,0.15764021,42906.0,42905.0,0.32892296]
[1644211072560,0.15764021,42906.0,42905.0,0.05]
[1644211072761,0.15764021,42906.0,42905.0,0.32914634]
[1644211073207,0.15264021,42906.0,42905.0,0.32914634]
[1644211073408,0.15264021,42906.0,42905.0,0.42914634]
[1644211073910,0.15764021,42906.0,42905.0,0.45114634]
[1644211074509,0.15764021,42906.0,42905.0,0.072]
[1644211075309,0.15264021,42906.0,42905.0,0.05]
[1644211075910,0.15464021,42906.0,42905.0,0.09]
[1644211077157,0.15264021,42906.0,42905.0,0.1]
[1644211077954,0.15464021,42906.0,42905.0,0.42850043]
[1644211078756,0.15464021,42906.0,42905.0,0.09]
[1644211079255,0.15264021,42906.0,42905.0,0.05]
[1644211079860,0.15264021,42906.0,42903.0,0.05]
[1644211080055,0.15564021,42906.0,42905.0,0.075]
[1644211080258,0.15564021,42906.0,42905.0,0.125]
[1644211080504,0.15537578,42906.0,42905.0,0.125]
[1644211080705,0.15537578,42906.0,42905.0,0.075]
[1644211081207,0.15237578,42906.0,42905.0,0.05]
[1644211081407,0.15237578,42906.0,42905.0,0.33843804]
[1644211081907,0.15237578,42906.0,42905.0,0.43843804]
[1644211082105,0.15237578,42906.0,42905.0,0.181]
[1644211082606,0.15237578,42906.0,42905.0,0.031]
[1644211084159,0.15437578,42906.0,42905.0,0.079]
[1644211084352,0.15437578,42906.0,42905.0,0.129]
[1644211085354,0.15237578,42906.0,42905.0,0.05]
[1644211085954,0.15537578,42906.0,42905.0,0.098]
[1644211087354,0.15237578,42906.0,42905.0,0.1]
[1644211087656,0.15237578,42906.0,42903.0,0.05]
[1644211087657,0.15237578,42906.0,42903.0,0.1]
[1644211087906,0.15237578,42906.0,42905.0,0.05]
[1644211088105,0.48881778,42906.0,42905.0,0.015]
[1644211088605,0.16237578,42906.0,42905.0,0.015]
[1644211089207,0.15237578,42906.0,42903.0,0.25831213]
[1644211090007,0.15437578,42906.0,42903.0,0.32431213]
[1644211090210,0.15437578,42906.0,42903.0,0.37431213]
[1644211090909,0.15437578,42906.0,42903.0,0.66337509]
[1644211091309,0.15237578,42906.0,42903.0,0.59737509]
[1644211091963,0.15537578,42906.0,42903.0,0.67137509]
[1644211092560,0.15537578,42906.0,42903.0,0.38231213]
[1644211093559,0.15237578,42906.0,42903.0,0.30831213]
[1644211093761,0.15237578,42906.0,42903.0,0.1]
[1644211093962,0.15437578,42906.0,42903.0,0.174]
[1644211094160,0.35474937,42906.0,42903.0,0.174]
[1644211094361,0.15437578,42906.0,42903.0,0.174]
[1644211095906,0.15237578,42906.0,42903.0,0.1]
[1644211096105,0.16437578,42906.0,42903.0,0.125]
[1644211097306,0.15237578,42906.0,42903.0,0.1]
[1644211098009,0.16337578,42906.0,42903.0,0.125]
[1644211099259,0.15237578,42906.0,42903.0,0.1]
[1644211099661,0.326442,42905.0,42903.0,0.05]
[1644211099859,0.326442,42905.0,42895.0,0.1239]
[1644211099860,0.2738812,42904.0,42895.0,0.1239]
[1644211100058,0.2738812,42904.0,42893.0,0.11314119]
[1644211100059,0.326442,42903.0,42893.0,0.11314119]
[1644211100260,0.326442,42903.0,42892.0,0.5886]
[1644211100659,0.29031675,42901.0,42899.0,0.06411696]
[1644211100858,0.61675875,42901.0,42899.0,0.06411696]
[1644211101059,0.29031675,42901.0,42899.0,0.06411696]
[1644211101261,0.29135102,42905.0,42899.0,0.06411696]
[1644211101461,0.00055197,42903.0,42899.0,0.06411696]
[1644211102061,0.00555197,42903.0,42900.0,0.0705]
[1644211102462,0.005,42903.0,42900.0,0.0705]
[1644211103222,0.005,42903.0,42900.0,0.1525]
[1644211103417,0.00016559,42904.0,42900.0,0.1025]
[1644211103616,0.15237578,42906.0,42900.0,0.0525]
[1644211103819,0.00016559,42904.0,42901.0,0.21851228]
[1644211104017,0.00216559,42904.0,42901.0,0.21851228]
[1644211104317,0.00216559,42904.0,42901.0,0.26851228]
[1644211104717,0.002,42904.0,42901.0,0.26851228]
[1644211104918,0.002,42904.0,42901.0,0.05]
[1644211105117,0.002,42904.0,42900.0,0.1365]
[1644211105319,0.00016559,42905.0,42900.0,0.1525]
[1644211105518,0.23351538,42903.0,42900.0,0.1025]
[1644211105723,0.27830334,42902.0,42900.0,0.0525]
[1644211106019,0.60474534,42902.0,42900.0,0.0565]
[1644211106217,0.27388205,42901.0,42900.0,0.0565]
[1644211107258,0.27388205,42901.0,42900.0,0.0525]
[1644211108059,0.28588205,42901.0,42900.0,0.0525]
[1644211108263,0.28581824,42901.0,42900.0,0.0525]
[1644211108461,0.30129804,42901.0,42900.0,0.0525]
[1644211109362,0.28929804,42901.0,42900.0,0.0525]
[1644211109961,0.30629804,42901.0,42900.0,0.0525]
[1644211110410,0.63274004,42901.0,42900.0,0.0025]
[1644211111207,0.61574004,42901.0,42900.0,0.0025]
[1644211112008,0.62774004,42901.0,42900.0,0.0025]
[1644211113311,0.61574004,42901.0,42900.0,0.0025]
[1644211114158,0.00749999,42899.0,42891.0,0.05]
[1644211114463,0.8,42900.0,42891.0,0.05]
[1644211114464,0.326442,42898.0,42891.0,0.05]
[1644211114658,0.326442,42896.0,42891.0,0.05]
[1644211115156,0.08050021,42892.0,42891.0,0.05]
[1644211116157,0.004,42892.0,42891.0,0.05]
[1644211117358,0.79361841,42895.0,42891.0,0.05]
[1644211117559,0.07001463,42892.0,42891.0,0.05]
[1644211118016,0.07501463,42892.0,42891.0,0.05]
[1644211119217,0.07001463,42892.0,42891.0,0.05]
[1644211120117,0.07601463,42892.0,42891.0,0.05]
[1644211121520,0.07001463,42892.0,42891.0,0.05]
[1644211122162,0.07901463,42892.0,42891.0,0.05]
[1644211122360,0.009,42892.0,42891.0,0.05]
[1644211123361,0.26827714,42895.0,42891.0,0.05]
[1644211124159,0.27527714,42895.0,42891.0,0.05]
[1644211124360,0.007,42895.0,42891.0,0.1]
[1644211124961,0.007,42895.0,42891.0,0.05]
[1644211125163,0.007,42895.0,42892.0,0.05]
[1644211125413,0.03470267,42900.0,42892.0,0.05]
[1644211125414,0.23660755,42898.0,42892.0,0.05]
[1644211125614,0.08612034,42897.0,42892.0,0.05]
[1644211125814,0.56105921,42899.0,42892.0,0.05]
[1644211126014,0.004,42898.0,42892.0,0.05]
[1644211126814,0.25118156,42898.0,42892.0,0.05]
[1644211127216,0.004,42898.0,42892.0,0.05]
[1644211127416,0.63724688,42899.0,42892.0,0.05]
[1644211127616,0.326442,42898.0,42892.0,0.05]
[1644211127817,0.326442,42898.0,42891.0,0.05]
[1644211128217,0.2317384,42894.0,42891.0,0.05]
[1644211128418,2.19758748,42893.0,42891.0,0.05]
[1644211128619,0.61922312,42892.0,42891.0,0.05]
[1644211130159,0.62922312,42892.0,42891.0,0.05]
[1644211131259,0.61922312,42892.0,42891.0,0.05]
[1644211131661,0.61922312,42892.0,42891.0,0.05022225]
[1644211132162,0.62922312,42892.0,42891.0,0.05022225]
[1644211132358,0.86832245,42892.0,42891.0,0.05]
[1644211132560,0.86832245,42892.0,42891.0,0.05022225]
[1644211133013,0.86832245,42892.0,42891.0,0.05]
[1644211133212,0.54188045,42892.0,42891.0,0.05022225]
[1644211133413,0.53188045,42892.0,42891.0,0.05022225]
[1644211133814,0.53188045,42892.0,42891.0,0.05]
[1644211134014,0.54188045,42892.0,42891.0,0.05]
[1644211134218,0.54188045,42892.0,42891.0,0.05022225]
[1644211134417,0.30278112,42892.0,42891.0,0.05]
[1644211134616,0.62922312,42892.0,42891.0,0.05]
[1644211135316,0.61922312,42892.0,42891.0,0.05]
[1644211136119,0.62722312,42892.0,42891.0,0.05]
[1644211136964,0.62715244,42892.0,42891.0,0.05]
[1644211137364,0.61915244,42892.0,42891.0,0.05]
[1644211138163,0.62715244,42892.0,42891.0,0.05]
[1644211139366,0.61915244,42892.0,42891.0,0.05]
[1644211140062,0.62615244,42892.0,42891.0,0.05]
[1644211141313,0.61915244,42892.0,42891.0,0.0498925]
[1644211142219,0.326442,42891.0,42888.0,0.00022225]
[1644211142416,0.326442,42891.0,42886.0,0.00022225]
[1644211142619,0.05,42887.0,42885.0,0.00070919]
[1644211142817,0.98774117,42886.0,42885.0,0.00070919]
[1644211143217,0.98774117,42886.0,42869.0,0.05]
[1644211143218,1.08774117,42886.0,42872.0,0.01842043]
[1644211143419,0.30025276,42874.0,42872.0,0.01842043]
[1644211143617,0.57901393,42873.0,42870.0,0.00022225]
[1644211143816,0.0467,42881.0,42870.0,0.00022225]
[1644211143817,0.326442,42872.0,42870.0,0.00022225]
[1644211144016,0.326442,42879.0,42870.0,0.00022225]
[1644211144262,0.005,42873.0,42869.0,0.06842043]
[1644211144663,0.005,42873.0,42872.0,0.00070873]
[1644211144862,0.005,42873.0,42872.0,0.258588]
[1644211145465,0.3017695,42883.0,42872.0,0.308588]
[1644211145661,0.3017695,42883.0,42875.0,0.05]
[1644211145861,0.326442,42882.0,42875.0,0.05]
[1644211146467,0.07194081,42880.0,42874.0,0.00022225]
[1644211146664,0.28313148,42879.0,42873.0,0.00022225]
[1644211146866,0.326442,42878.0,42872.0,0.25810152]
[1644211147168,0.326442,42878.0,42875.0,0.00070869]
[1644211148024,0.326442,42878.0,42872.0,0.00022225]
[1644211148215,0.07350935,42873.0,42870.0,0.00022225]
[1644211148415,0.009,42878.0,42869.0,0.05]
[1644211148618,0.326442,42877.0,42870.0,0.24686787]
[1644211148815,0.2739051,42876.0,42870.0,0.24709012]
[1644211149216,0.326442,42875.0,42870.0,0.00022225]
[1644211149418,0.59823865,42875.0,42871.0,0.00070875]
[1644211149818,0.0813569,42873.0,42871.0,0.00070875]
[1644211150016,0.326442,42872.0,42871.0,0.00070875]
[1644211150417,0.326442,42872.0,42870.0,0.00022225]
[1644211150615,0.011,42875.0,42869.0,0.05070876]
[1644211151318,0.2739051,42876.0,42869.0,0.05070876]
[1644211151516,0.07784627,42873.0,42870.0,0.05]
[1644211151763,0.07784627,42873.0,42870.0,0.05022225]
[1644211152166,0.009,42873.0,42870.0,0.05022225]
[1644211153565,0.2739051,42876.0,42870.0,0.05022225]
[1644211154165,0.2819051,42876.0,42871.0,0.00070801]
[1644211154367,0.2819051,42876.0,42871.0,0.00093026]
[1644211154765,0.2819051,42876.0,42873.0,0.05]
[1644211155266,0.008,42876.0,42872.0,0.00022225]
[1644211155514,0.008,42876.0,42870.0,0.10022225]
[1644211156114,0.013,42876.0,42870.0,0.10022225]
[1644211156714,0.005,42876.0,42870.0,0.10022225]
[1644211156916,0.08419289,42876.0,42870.0,0.10022225]
[1644211157716,0.08419289,42876.0,42870.0,0.15022225]
[1644211157916,0.08419289,42876.0,42871.0,0.00070784]
[1644211158115,0.08919289,42876.0,42871.0,0.00093009]
[1644211158915,0.005,42876.0,42871.0,0.00022225]
[1644211159166,0.005,42876.0,42871.0,0.00070783]
[1644211159360,0.653567,42880.0,42871.0,0.00093008]
[1644211159560,0.326442,42879.0,42871.0,0.00093008]
[1644211159961,0.326442,42879.0,42871.0,0.00022225]
[1644211160167,0.08800978,42877.0,42873.0,0.00070781]
[1644211160363,0.326442,42876.0,42873.0,0.00070781]
[1644211160762,0.60487016,42876.0,42873.0,0.00070781]
[1644211161164,0.60487016,42876.0,42870.0,0.00022225]
[1644211161364,0.60487016,42876.0,42872.0,0.00070782]
[1644211161562,0.32508024,42873.0,42872.0,0.00070782]
[1644211161763,0.65152224,42873.0,42872.0,0.00093007]
[1644211161962,0.65152224,42873.0,42872.0,0.00070782]
[1644211162163,0.66552224,42873.0,42872.0,0.00070782]
[1644211162363,0.66552224,42873.0,42870.0,0.00022225]
[1644211162562,0.326442,42872.0,42870.0,0.00070784]
[1644211162766,0.326442,42872.0,42871.0,0.05]
[1644211163011,0.326442,42872.0,42871.0,0.00022225]
[1644211163212,0.326442,42872.0,42870.0,0.00093009]
[1644211163414,0.25522859,42871.0,42870.0,0.00093009]
[1644211163612,0.326442,42871.0,42870.0,0.00022225]
[1644211163815,0.32508024,42873.0,42869.0,0.05070786]
[1644211164014,0.32508024,42873.0,42870.0,0.00022225]
[1644211164314,0.012,42871.0,42869.0,0.05070786]
[1644211164917,0.012,42871.0,42864.0,0.1]
[1644211164918,0.326442,42870.0,42864.0,0.1]
[1644211165124,0.326442,42866.0,42854.0,0.1]
[1644211165327,0.32481634,42865.0,42854.0,0.1]
[1644211165521,0.37151634,42865.0,42854.0,0.1]
[1644211165718,0.47151634,42865.0,42856.0,0.05]
[1644211165920,0.27107681,42861.0,42856.0,0.05]
[1644211166318,2.06608481,42858.0,42856.0,0.05]
[1644211166518,2.06608481,42858.0,42857.0,0.05]
[1644211166770,0.27107681,42861.0,42854.0,0.05]
[1644211166970,0.27107681,42861.0,42853.0,0.4928]
[1644211166971,0.18980095,42860.0,42853.0,0.4928]
[1644211167170,0.08461328,42855.0,42853.0,0.4928]
[1644211167569,0.08461328,42855.0,42853.0,0.05]
[1644211167971,0.5463529,42861.0,42853.0,0.05]
[1644211168168,0.01,42855.0,42853.0,0.05]
[1644211169468,0.5463529,42861.0,42853.0,0.05]
[1644211169668,0.08741941,42859.0,42853.0,0.05]
[1644211169869,0.326442,42858.0,42853.0,0.05]
[1644211171117,0.60085866,42858.0,42853.0,0.05070745]
[1644211171516,0.28731644,42854.0,42853.0,0.05070745]
[1644211171916,0.326442,42857.0,42853.0,0.05070745]
[1644211172117,0.326442,42857.0,42853.0,0.05]
[1644211172318,0.008,42854.0,42853.0,0.05]
[1644211172517,0.008,42854.0,42853.0,0.1]
[1644211174167,0.012,42854.0,42853.0,0.05]
[1644211174861,0.012,42854.0,42853.0,0.1]
[1644211175063,0.5316,42854.0,42853.0,0.1]
[1644211175465,0.5196,42854.0,42853.0,0.1467]
[1644211176062,0.5196,42854.0,42853.0,0.2467]
[1644211176260,0.5196,42854.0,42853.0,0.2657]
[1644211177161,0.5196,42854.0,42853.0,0.1657]
[1644211177462,0.5196,42854.0,42853.0,0.1467]
[1644211178319,0.5196,42854.0,42853.0,0.1567]
[1644211178320,0.5416,42854.0,42853.0,0.1567]
[1644211180116,0.5196,42854.0,42853.0,0.1]
[1644211180314,0.5386,42854.0,42853.0,0.106]
[1644211180920,0.5386,42854.0,42853.0,0.10622395]
[1644211181120,0.5386,42854.0,42853.0,0.15622395]
[1644211181516,0.5196,42854.0,42853.0,0.15022395]
[1644211181965,0.5196,42854.0,42853.0,0.23374624]
[1644211182166,0.5196,42854.0,42853.0,0.15022395]
[1644211182365,0.5446,42854.0,42853.0,0.15822395]
[1644211183566,0.5196,42854.0,42853.0,0.15022395]
[1644211184166,0.5196,42854.0,42853.0,0.15822395]
[1644211184466,0.5456,42854.0,42853.0,0.15822395]
[1644211185515,0.5196,42854.0,42853.0,0.15022395]
[1644211185915,0.5196,42854.0,42853.0,0.15]
[1644211186315,0.5466,42854.0,42853.0,0.154]
[1644211187317,0.5466,42854.0,42853.0,0.204]
[1644211187518,0.5196,42854.0,42853.0,0.2]
[1644211187718,0.5196,42854.0,42853.0,0.15]
[1644211188219,0.8728464,42854.0,42853.0,0.151]
[1644211189467,0.8728464,42854.0,42853.0,0.15]
[1644211189468,0.8598464,42854.0,42853.0,0.15]
[1644211190269,0.8598464,42854.0,42853.0,0.152]
[1644211190270,0.8738464,42854.0,42853.0,0.152]
[1644211191070,0.87373781,42854.0,42853.0,0.152]
[1644211191474,0.87373781,42854.0,42853.0,0.052]
[1644211191771,0.85973781,42854.0,42853.0,0.1]
[1644211192372,0.87373781,42854.0,42853.0,0.102]
[1644211193614,0.87373781,42854.0,42853.0,0.152]
[1644211194216,0.94273781,42854.0,42853.0,0.152]
[1644211195116,0.94273781,42854.0,42853.0,0.102]
[1644211195615,0.85973781,42854.0,42853.0,0.1]
[1644211196218,0.90973781,42854.0,42853.0,0.1]
[1644211197162,0.90973781,42854.0,42853.0,0.09923753]
[1644211197362,1.23617981,42854.0,42853.0,0.09923753]
[1644211197560,0.51949141,42854.0,42853.0,0.09923753]
[1644211198361,0.55149141,42854.0,42853.0,0.10123753]
[1644211199162,0.55149141,42854.0,42853.0,0.15123753]
[1644211199563,0.51949141,42854.0,42853.0,0.14923753]
[1644211200417,0.54049141,42854.0,42853.0,0.15423753]
[1644211201019,0.54049141,42854.0,42853.0,0.40593699]
[1644211201419,0.54049141,42854.0,42853.0,0.15423753]
[1644211201620,0.51949141,42854.0,42853.0,0.14923753]
[1644211202417,0.53849141,42854.0,42853.0,0.14923753]
[1644211203620,0.51949141,42854.0,42853.0,0.14923753]
[1644211204276,0.53549141,42854.0,42853.0,0.14923753]
[1644211205573,0.51949141,42854.0,42853.0,0.14923753]
[1644211206376,0.53549141,42854.0,42853.0,0.14923753]